Cogmind - Beta 9.4 *** ADVENTURER MODE // 2020.02.29 @ 21:03:23 Player: WingedOwl Result: Destroyed by G-50 Soldier with Heavy Laser Performance ------------- Evolutions (5) 2500 Regions Visited (17) 3400 Robots Destroyed (154) 770 Value Destroyed (5782) 5782 Prototype IDs (36) 720 Alien Tech Used (0) 0 Bonus (2011) 2011 TOTAL SCORE: 15183 Bonus ------- High Alert Combat Kills 67 Follower Combat Kills 1388 Network Hubs Disabled 400 Aligned with FarCom 300 Friendly Fire -144 Cogmind --------- Core Integrity 0/1000 Matter 270/300 Energy 67/100 System Corruption 2% Temperature Cool (9) Movement Core (50) Location -5/Upper Caves Parts ------- > --- POWER (2) -------- (None) > --- PROPULSION (3) --- (None) > --- UTILITY (10) ----- Advanced Signal Interpreter Improved System Shield > --- WEAPON (2) ------- (None) > --- INVENTORY (4) ---- Advanced Focal Shield Skeleton Box Long-range Tractor Beam Peak State ------------ > --- POWER ------------ Improved Deuterium Engine Reinforced Deuterium Engine > --- PROPULSION ------- Improved Medium Treads Centrium Heavy Treads > --- UTILITY ---------- Advanced Heat Sink Coolant Injector High-capacity Storage Unit Structural Scanner Advanced Signal Interpreter Centrium Medium Armor Plating Improved Hacking Suite Improved System Shield > --- WEAPON ----------- Advanced Variable Charge Gun Proton Cannon > --- INVENTORY -------- Light Treads Improved Treads Improved Medium Treads Layered Medium Armor Plating Skeleton Box System Backup Module Beamcaster Heavy Plasma Cannon Improved KE Penetrator Bore Cannon Phasing Sabre [Rating: 82] Favorites ----------- Power Micro Fission Core Engine Improved Deuterium Engine Power Core Micro Fission Core Propulsion Improved Medium Treads Treads Improved Medium Treads Leg Aluminum Leg Hover Unit Cooled Gravmag System Flight Unit Biomechanical Wings Utility Structural Scanner Device Structural Scanner Storage High-capacity Storage Unit Processor Advanced Signal Interpreter Hackware Improved Hacking Suite Protection Centrium Medium Armor Plating Weapon Assault Rifle Energy Gun Improved Lightning Gun Energy Cannon Proton Cannon Ballistic Gun Assault Rifle Ballistic Cannon Bore Cannon Launcher Missile Launcher Impact Weapon Powered Hammer Slashing Weapon Phasing Sabre Build | -11 -10 -10 -9 -9 -9 -8 -8 -8 -7 -6 -6 -6 -6 -6 -5 -5 -5 ------- Run | Scr Mat Min Mat Min Exi Min Mat Sto Fac Fac Ext Cet Arc Hub Fac Upp Upp Slots Evolved 10 | . . . 2 . . . 2 . 2 2 . . . . 2 . . Power 1 | . . . . . . . . . . 1 . . . . . . . Propulsion 1 | . . . . . . . . . 1 . . . . . . . . Utility 8 | . . . 2 . . . 2 . 1 1 . . . . 2 . . Weapon . | . . . . . . . . . . . . . . . . . . Parts Attached 165 | 8 2 1 3 3 2 7 16 12 14 12 22 11 4 3 23 11 11 Power 19 | 1 . . 1 1 . . 3 1 2 2 . 1 . . 4 1 2 Engine 12 | 1 . . 1 . . . 2 1 2 1 . 1 . . 2 . 1 Core 7 | . . . . 1 . . 1 . . 1 . . . . 2 1 1 Reactor . | . . . . . . . . . . . . . . . . . . Propulsion 28 | 2 . . . . . 3 4 1 4 . 5 1 1 . 6 1 . Treads 19 | . . . . . . . 2 1 4 . 5 1 1 . 4 1 . Leg 7 | 2 . . . . . 3 2 . . . . . . . . . . Wheel . | . . . . . . . . . . . . . . . . . . Hover 1 | . . . . . . . . . . . . . . . 1 . . Flight 1 | . . . . . . . . . . . . . . . 1 . . Utility 60 | 3 1 1 2 1 2 3 7 7 3 5 8 3 3 . 7 3 1 Device 37 | 1 1 . 1 . 2 3 4 3 1 5 7 1 1 . 4 3 . Storage 5 | 1 . . . . . . 1 . 2 . . . . . 1 . . Processor 4 | 1 . . . 1 . . 1 1 . . . . . . . . . Hackware 8 | . . 1 1 . . . . 2 . . . 1 2 . 1 . . Protection 6 | . . . . . . . 1 1 . . 1 1 . . 1 . 1 Artifact . | . . . . . . . . . . . . . . . . . . Weapon 58 | 2 1 . . 1 . 1 2 3 5 5 9 6 . 3 6 6 8 Energy Gun 12 | . . . . . . . 1 1 2 1 2 3 . . . 2 . Energy Cannon 18 | . . . . . . . 1 . . 1 3 1 . 2 2 2 6 Ballistic Gun 13 | 2 1 . . 1 . 1 . 2 2 1 . 1 . . 1 . 1 Ballistic Cannon 3 | . . . . . . . . . . . 1 . . 1 . 1 . Launcher 3 | . . . . . . . . . 1 . 2 . . . . . . Special Weapon . | . . . . . . . . . . . . . . . . . . Impact Weapon 2 | . . . . . . . . . . 2 . . . . . . . Slashing Weapon 7 | . . . . . . . . . . . 1 1 . . 3 1 1 Piercing Weapon . | . . . . . . . . . . . . . . . . . . Special Melee Weapon . | . . . . . . . . . . . . . . . . . . Unidentified Prototypes 10 | . . . . . . . 1 3 . . . 4 . . 2 . . Parts Lost 53 | . . . . . . 1 9 1 1 . 6 1 2 5 6 2 19 Power 8 | . . . . . . . 2 . . . . . . 2 . . 4 Propulsion 10 | . . . . . . . 2 . . . 1 . 1 . 3 . 3 Utility 17 | . . . . . . . 3 1 . . 3 . 1 1 2 . 6 Weapon 18 | . . . . . . 1 2 . 1 . 2 1 . 2 1 2 6 Highest Loss Streak 16 | . . . . . . 1 8 1 1 . 5 1 1 5 2 3 16 Average Slot Usage (%) 92 | . 99 100 98 100 100 99 78 91 96 100 99 93 92 90 83 95 85 Engine 5 | . 14 14 11 3 . . 6 9 7 8 6 12 13 11 1 . . Core 4 | . . . . 7 11 11 1 . . 3 6 . . . 1 11 9 Treads 12 | . . . . . . . 10 18 20 20 19 13 12 13 12 12 10 Leg 3 | . 28 28 22 22 22 22 7 . . . . . . . . . . Device 21 | . 14 14 21 16 11 11 13 24 25 26 25 22 19 20 22 23 19 Storage 6 | . . . . . . . 9 7 4 6 6 6 6 6 5 11 10 Processor 6 | . 14 3 . 5 11 11 9 9 7 6 6 6 6 6 5 5 5 Hackware 12 | . . 10 21 22 22 22 2 3 15 13 10 10 13 13 16 17 15 Protection 1 | . . . . . . . 3 2 . . 2 6 6 5 1 . . Energy Gun 3 | . . . . . . . 5 1 7 9 3 3 6 1 . 3 2 Energy Cannon 3 | . . . . . . . 6 . . 1 7 6 6 9 1 4 6 Ballistic Gun 6 | . 27 28 22 22 22 21 2 15 5 . . . . . 3 . . Naked Turns . | . . . . . . . . . . . . . . . . . . Heaviest Build 101 | 10 8 8 13 13 11 11 101 101 56 69 83 88 81 83 82 89 100 Greatest Support 110 | 20 20 20 20 20 20 40 40 40 62 62 80 110 110 110 110 86 86 Greatest Overweight (x) 5 | 2 . . . . . . 5 2 . 1 1 1 . . 1 1 3 Average Overweight (x) . | . . . . . . . 2 1 . . . . . . . . 1 Largest Inventory Capacity 24 | 6 4 4 4 4 4 4 24 24 12 12 12 12 12 12 18 18 18 Average Capacity 13 | 4 4 4 4 4 4 4 24 20 7 12 12 12 12 12 12 18 16 Most Carried 24 | 4 4 4 4 4 4 4 17 24 12 12 12 12 11 12 12 18 18 Average Carried 11 | 2 3 3 3 4 3 3 8 19 7 11 11 11 10 11 9 14 16 Final Capacity 24 | 4 4 4 4 4 4 4 24 4 12 12 12 12 12 12 18 18 4 Final Carried 18 | 4 4 4 4 4 4 4 17 4 12 12 12 11 11 11 12 18 3 Class Distribution -------------------- 66% | Hacker-Mutant 16% | Hauler-Mutant 10% | Scavenger-Mutant 3% | Hacker-Skirmisher Dominant Class ---------------- Mutant | -10/Materials Hacker-Mutant | -10/Mines Hacker-Mutant | -9/Materials Hacker-Mutant | -9/Mines Hacker-Mutant | -9/Exiles Hacker-Skirmisher | -8/Mines Hauler-Mutant | -8/Materials Hauler-Mutant | -8/Storage Hacker-Mutant | -7/Factory Hacker-Mutant | -6/Factory Hacker-Mutant | -6/Extension Hacker-Mutant | -6/Cetus Scavenger-Mutant | -6/Archives Scavenger-Mutant | -6/Hub_04(d) Hacker-Mutant | -5/Factory Hacker-Mutant | -5/Upper Caves Hacker-Mutant | -5/Upper Caves Resources | -11 -10 -10 -9 -9 -9 -8 -8 -8 -7 -6 -6 -6 -6 -6 -5 -5 -5 ----------- Run | Scr Mat Min Mat Min Exi Min Mat Sto Fac Fac Ext Cet Arc Hub Fac Upp Upp Matter Collected 3278 | 318 40 . 82 48 . 196 191 568 272 . 442 129 35 . 709 223 25 Remotely . | . . . . . . . . . . . . . . . . . . Salvage Created 7074 | 116 48 . 139 . . 185 576 1069 861 97 799 389 425 773 932 241 424 Parts 332 | 8 1 . 12 . . 16 32 53 35 3 37 12 25 29 44 11 14 Haulers Intercepted 12 | . 1 . 2 . . . 2 2 1 . . . . 3 1 . . Recyclers Shooed 4 | . . . . . . 1 1 1 . . . . . 1 . . . Parts Field Recycled . | . . . . . . . . . . . . . . . . . . Retrieved Matter . | . . . . . . . . . . . . . . . . . . Parts Self-Destructed 21 | . . . . . . . . . . . . . . . . 8 13 Prevented 5 | . . . . . . . . . . . . . . . . 4 1 Kills | -11 -10 -10 -9 -9 -9 -8 -8 -8 -7 -6 -6 -6 -6 -6 -5 -5 -5 ------- Run | Scr Mat Min Mat Min Exi Min Mat Sto Fac Fac Ext Cet Arc Hub Fac Upp Upp Combat Hostiles Destroyed 100 | . . . . . . 5 6 12 14 2 12 6 4 7 13 6 13 Melee 3 | . . . . . . . 2 . . . 1 . . . . . . Guns 49 | . . . . . . 5 3 12 11 2 2 2 . 2 3 5 2 Cannons 38 | . . . . . . . 1 . . . 6 3 3 3 10 1 11 AOE 9 | . . . . . . . . . 3 . 3 1 . 2 . . . Classes Destroyed 15 | 2 1 . 1 . . 2 3 1 1 . 2 1 . . . . 1 Worker 6 | . . . . . . . . 3 . . . . . 1 2 . . Builder 4 | . . . . . . . . . . . 1 . . 2 1 . . Tunneler 4 | 2 . . . . . 1 . . . . . . . . 1 . . Hauler 12 | . 1 . 2 . . . 2 2 1 . . . . 3 1 . . Recycler 9 | 1 . . . . . 1 1 4 2 . . . . . . . . Operator 8 | . . . . . . . 1 1 . . 1 . 2 . 3 . . Watcher 11 | . . . 2 . . . 2 1 4 . 2 . . . . . . Swarmer 20 | . . . . . . 4 . 2 4 . . . . . . 4 6 Grunt 37 | . . . . . . . 5 6 4 . 4 4 . 4 6 2 2 Brawler 3 | . . . . . . . . . . . . 1 . . 1 . 1 Duelist 1 | . . . . . . . . . . . . . . . . . 1 Sentry 20 | . . . . . . . 1 3 3 . 5 . 4 2 1 . 1 Hunter 9 | . . . . . . 1 . 1 2 . 1 1 . . 2 . 1 Programmer 9 | . . . . . . . . . 1 2 1 . . 1 3 . 1 Behemoth 1 | . . . . . . . . . . . 1 . . . . . . Best Kill Streak 8 | 3 1 . 2 . . 4 2 4 5 1 8 4 3 7 3 2 7 Combat Bots Only 7 | . . . . . . 4 2 2 5 1 6 4 3 3 3 2 7 Max Kills in Single Turn 5 | 1 1 . 1 . . 2 1 1 2 1 3 1 1 5 2 1 1 Gunslinging 1 | . . . . . . 1 . . . . . . . . . . . Exploded 3 | . . . . . . . . . 2 . 3 1 . 2 . . . Melee 1 | . . . . . . . 1 . . . 1 . . . . . . Uniques/NPCs Destroyed . | . . . . . . . . . . . . . . . . . . Combat | -11 -10 -10 -9 -9 -9 -8 -8 -8 -7 -6 -6 -6 -6 -6 -5 -5 -5 -------- Run | Scr Mat Min Mat Min Exi Min Mat Sto Fac Fac Ext Cet Arc Hub Fac Upp Upp Damage Taken 9917 | . . . 139 24 . 205 918 784 765 116 730 643 353 1322 1099 479 2340 Core 1786 | . . . 31 . . 41 125 83 107 12 108 112 20 141 71 23 912 Absorbed by Shields 72 | . . . . . . . . . . . 72 . . . . . . Core Remaining (%) 80 | 100 . 100 . . . 82 . 62 84 . . . . 53 . . . Volleys Fired 462 | 10 5 . 10 . . 19 37 76 50 11 34 39 26 27 62 28 28 Largest 2 | 2 2 . 2 . . 2 2 2 2 2 2 2 2 2 2 2 2 Hottest 210 | 40 40 . 40 . . 40 138 50 108 138 165 165 155 180 147 162 210 Shots Fired 875 | 18 10 . 20 . . 37 63 152 93 17 68 78 50 53 119 47 50 Gun 574 | 18 10 . 20 . . 37 46 152 91 15 17 37 24 16 58 21 12 Cannon 294 | . . . . . . . 17 . . 2 46 41 26 37 61 26 38 Launcher 7 | . . . . . . . . . 2 . 5 . . . . . . Special . | . . . . . . . . . . . . . . . . . . Kinetic 437 | 18 10 . 20 . . 37 29 152 37 3 8 6 . 1 103 10 3 Thermal 235 | . . . . . . . 34 . 6 11 21 33 24 36 16 18 36 Explosive 7 | . . . . . . . . . 2 . 5 . . . . . . Electromagnetic 196 | . . . . . . . . . 48 3 34 39 26 16 . 19 11 Robot Hit Streak 49 | 10 6 . 12 . . 16 29 19 14 22 14 36 31 49 18 17 12 Robot Miss Streak 3 | 1 1 . 1 . . 2 1 3 2 1 3 1 . 2 2 2 2 Penetration Max 1 | . . . . . . . . . . . 1 1 . . 1 . . Secondary Targets 5 | . . . 1 . . 1 . 1 2 . . . . . . . . Max Gunslinging Chain 1 | . . . 1 . . 1 . 1 1 . . . . . . . . Shots Hit Robots 628 | 13 8 . 17 . . 28 48 122 71 9 53 39 29 36 78 37 40 Core Hits 286 | 4 3 . 9 . . 11 26 36 37 4 30 15 13 28 34 14 22 Critical Hits 49 | . . . 2 . . . 1 . 1 . 7 2 . . 27 7 2 Critical Kills 19 | . . . . . . . 1 . . . 3 . . . 11 2 2 Critical Parts Destroyed 29 | . . . 2 . . . . . 1 . 4 2 . . 15 5 . Melee Attacks 60 | . . . . . . . . . . 15 5 5 . . 25 6 4 Impact 17 | . . . . . . . . . . 15 2 . . . . . . Slashing 43 | . . . . . . . . . . . 3 5 . . 25 6 4 Piercing . | . . . . . . . . . . . . . . . . . . Sneak Attacks 1 | . . . . . . . . . . . 1 . . . . . . Combat Hostiles . | . . . . . . . . . . . . . . . . . . Follow-up Attacks . | . . . . . . . . . . . . . . . . . . Damage Inflicted 15722 | 125 84 . 205 . . 296 887 1976 1823 191 2170 1108 883 2028 1964 798 1184 Guns 7464 | 125 84 . 205 . . 296 472 1973 1486 191 314 367 343 333 792 392 91 Cannons 5790 | . . . . . . . 350 . . . 1083 697 477 738 1099 406 940 Explosions 1990 | . . . . . . . . . 337 . 546 44 63 957 43 . . Melee 365 | . . . . . . . . . . . 222 . . . . . 143 Ramming 113 | . . . . . . . 65 3 . . 5 . . . 30 . 10 Kinetic 5481 | 125 84 . 205 . . 296 334 1973 341 25 188 144 . . 1519 231 16 Thermal 4207 | . . . . . . . 488 . 101 166 425 335 406 732 372 320 862 Explosive 848 | . . . . . . . . . 337 . 511 . . . . . . Electromagnetic 4708 | . . . . . . . . . 1044 . 819 629 477 1296 43 247 153 Impact . | . . . . . . . . . . . . . . . . . . Slashing 365 | . . . . . . . . . . . 222 . . . . . 143 Piercing . | . . . . . . . . . . . . . . . . . . Highest Corruption 15 | . . . 1 1 1 1 . . . 1 1 . . 15 3 . 2 Average Corruption 1 | . . . 1 1 1 1 . . . 1 1 . . 8 1 . 1 Corruption Purged 4 | . . . . . . . . . . . 1 . . . 3 . . Effects 22 | . . . 1 2 3 1 . . . 2 3 . . 2 8 . . Message Errors 8 | . . . 1 . 3 1 . . . . 1 . . 1 1 . . Matter Fused 3 | . . . . . . . . . . . . . . . 3 . . Heat Flow Errors 1 | . . . . . . . . . . . . . . . 1 . . Energy Discharges 2 | . . . . . . . . . . 1 1 . . . . . . Data Loss (minor) 5 | . . . . 2 . . . . . 1 . . . 1 1 . . Targeting Errors 3 | . . . . . . . . . . . 1 . . . 2 . . Overload Shots . | . . . . . . . . . . . . . . . . . . Overflow Damage 207 | . . . . . . . 3 . 11 . 105 . 11 49 2 . 26 Projectiles 60 | . . . . . . . 3 . . . 6 . . 23 2 . 26 Explosions 48 | . . . . . . . . . 11 . . . 11 26 . . . Melee 99 | . . . . . . . . . . . 99 . . . . . . Knockbacks 13 | . . . . . . . . . . . 2 . . . 9 2 . Impact . | . . . . . . . . . . . . . . . . . . Kinetic 13 | . . . . . . . . . . . 2 . . . 9 2 . Secondary . | . . . . . . . . . . . . . . . . . . Self-Inflicted Damage 144 | . . . . . . . 4 . . . . . 56 84 . . . Shots 2 | . . . . . . . . . . . . . 1 1 . . . Rammed 16 | . . . . . . . 7 1 . . 1 . . . 5 . 2 Targets Rammed 20 | . . . . . . . 11 1 . . 1 . . . 5 . 2 Kicked 3 | . . . . . . . 3 . . . . . . . . . . Crushed 1 | . . . . . . . 1 . . . . . . . . . . Highest Temperature 297 | . . . . . . . 297 45 16 . 75 198 111 198 187 198 144 Average Temperature 58 | . . . . . . . 90 12 7 . 18 62 35 81 55 113 33 Received Heat Transfer 3134 | . . . 36 . . . 585 360 171 . 221 327 72 189 153 126 894 Siege Activations 1 | . . . . . . . . . . . . . . . 1 . . Total Turns 64 | . . . . . . . . . . . . . . . 64 . . Longest Duration 64 | . . . . . . . . . . . . . . . 64 . . Robots Corrupted 3 | . . . . . . . . . 1 . . . 1 1 . . . Combat Hostiles 1 | . . . . . . . . . . . . . 1 . . . . Parts Fried 25 | . . . . . . . . . 9 . 5 2 2 7 . . . Impact Corruptions . | . . . . . . . . . . . . . . . . . . Robots Melted . | . . . . . . . . . . . . . . . . . . Combat Hostiles . | . . . . . . . . . . . . . . . . . . Parts Melted 12 | . . . . . . . . . 2 3 3 1 . . 1 2 . Heat Transferred 5680 | . . . . . . . 814 . 222 296 631 470 494 853 550 518 832 Parts Sabotaged . | . . . . . . . . . . . . . . . . . . Parts Stolen . | . . . . . . . . . . . . . . . . . . Parts Stripped . | . . . . . . . . . . . . . . . . . . Power Chain Reactions 4 | . . . . . . . . . . . 1 1 1 1 . . . Missiles Intercepted . | . . . . . . . . . . . . . . . . . . Alert | -11 -10 -10 -9 -9 -9 -8 -8 -8 -7 -6 -6 -6 -6 -6 -5 -5 -5 ------- Run | Scr Mat Min Mat Min Exi Min Mat Sto Fac Fac Ext Cet Arc Hub Fac Upp Upp Peak Influence 723 | 15 34 11 91 29 . 90 89 363 314 57 198 268 184 723 392 . . Average Influence 99 | 6 15 11 36 18 . 24 27 119 88 32 66 131 147 382 197 . . Maximum Alert Level 3 | . . . . . . . . 1 1 . . 1 . 3 1 . . Low Security (%) 82 | 100 100 100 100 100 . 100 100 76 78 100 100 71 100 7 57 . . Level 1 16 | . . . . . . . . 23 21 . . 28 . 68 42 . . Level 2 . | . . . . . . . . . . . . . . 19 . . . Level 3 . | . . . . . . . . . . . . . . 4 . . . Level 4 . | . . . . . . . . . . . . . . . . . . Level 5 . | . . . . . . . . . . . . . . . . . . High Security . | . . . . . . . . . . . . . . . . . . Max Security . | . . . . . . . . . . . . . . . . . . Squads Dispatched 25 | . . 1 . . . . 1 9 2 2 2 1 . 3 3 . 1 Investigation 11 | . . 1 . . . . . 4 . 1 1 1 . 2 1 . . Extermination 5 | . . . . . . . . . 2 1 . . . 1 1 . . Reinforcement 5 | . . . . . . . 1 2 . . 1 . . . 1 . . Assault 1 | . . . . . . . . . . . . . . . . . 1 Garrison 3 | . . . . . . . . 3 . . . . . . . . . Intercept . | . . . . . . . . . . . . . . . . . . Construction Impeded . | . . . . . . . . . . . . . . . . . . Haulers Reinforced . | . . . . . . . . . . . . . . . . . . Stealth | -11 -10 -10 -9 -9 -9 -8 -8 -8 -7 -6 -6 -6 -6 -6 -5 -5 -5 --------- Run | Scr Mat Min Mat Min Exi Min Mat Sto Fac Fac Ext Cet Arc Hub Fac Upp Upp Distress Signals 11 | . . . 2 . . . 1 5 1 . 1 1 . . . . . Communications Jammed 25 | . . . . . . . 11 1 6 . . . . . . . 7 Distress Signals 25 | . . . . . . . 11 1 6 . . . . . . . 7 Times Spotted 220 | . 1 . 9 . . 5 22 26 23 3 30 16 6 20 20 9 30 Peak Tracking Total 12 | . 2 . 3 . . 4 6 4 5 1 5 5 1 11 4 3 12 Tactical Retreats 12 | . . . . . . . 5 1 . . . . . 1 2 1 2 Traps | -11 -10 -10 -9 -9 -9 -8 -8 -8 -7 -6 -6 -6 -6 -6 -5 -5 -5 ------- Run | Scr Mat Min Mat Min Exi Min Mat Sto Fac Fac Ext Cet Arc Hub Fac Upp Upp Traps Triggered 10 | . . . 1 2 . . 2 3 . . 2 . . . . . . Indirectly . | . . . . . . . . . . . . . . . . . . Trap Hack Attempts . | . . . . . . . . . . . . . . . . . . Triggered . | . . . . . . . . . . . . . . . . . . Disarmed 4 | . . . . . . . . . . . . . . 4 . . . Reprogrammed . | . . . . . . . . . . . . . . . . . . Reused . | . . . . . . . . . . . . . . . . . . Traps Extracted . | . . . . . . . . . . . . . . . . . . Installed . | . . . . . . . . . . . . . . . . . . Triggered 1 | . . . . . . . . . . . . . . 1 . . . Exploded 1 | . . . . . 1 . . . . . . . . . . . . Machines | -11 -10 -10 -9 -9 -9 -8 -8 -8 -7 -6 -6 -6 -6 -6 -5 -5 -5 ---------- Run | Scr Mat Min Mat Min Exi Min Mat Sto Fac Fac Ext Cet Arc Hub Fac Upp Upp Machines Disabled 38 | . . . . . . . . 1 1 . 5 4 . 18 6 1 2 Max in Single Turn 16 | . . . . . . . . 1 1 . 1 1 . 16 2 1 1 Garrison Access 3 | . . . . . . . . . 1 . . . . 1 1 . . Network Hub 2 | . . . . . . . . . . . . . . 2 . . . Machines Sabotaged . | . . . . . . . . . . . . . . . . . . Garrisons Compromised . | . . . . . . . . . . . . . . . . . . Overloaded Fab Kills . | . . . . . . . . . . . . . . . . . . Fab Network Shutdowns . | . . . . . . . . . . . . . . . . . . Hacking | -11 -10 -10 -9 -9 -9 -8 -8 -8 -7 -6 -6 -6 -6 -6 -5 -5 -5 --------- Run | Scr Mat Min Mat Min Exi Min Mat Sto Fac Fac Ext Cet Arc Hub Fac Upp Upp Machines Accessed 61 | . 3 1 2 1 1 . 2 15 5 4 8 5 . 7 5 1 1 Terminals 45 | . 3 . 2 . . . 1 13 2 3 8 5 . 6 2 . . Fabricators 2 | . . . . . . . . . 1 1 . . . . . . . Repair Stations 3 | . . . . . . . 1 . 1 . . . . . 1 . . Recycling Units 2 | . . . . . . . . 2 . . . . . . . . . Scanalyzers 1 | . . . . . . . . . . . . . . . 1 . . Garrison Access 3 | . . . . . . . . . 1 . . . . 1 1 . . Total Hacks 195 | . 5 1 8 1 1 . 4 45 15 11 27 17 . 41 17 1 1 Successful 133 | . 1 1 5 1 1 . 2 30 10 6 19 14 . 29 12 1 1 Failed 61 | . 4 . 3 . . . 2 15 5 5 7 3 . 12 5 . . Catastrophic 2 | . . . . . . . . 2 . . . . . . . . . Database Lockouts 1 | . . . . . . . . . . . 1 . . . . . . Manual 160 | . 5 . 6 . 1 . 1 45 8 10 29 16 1 27 11 . . Terminals 173 | . 5 . 8 . . . 3 42 8 10 27 17 . 40 13 . . Fabricators 2 | . . . . . . . . . 1 1 . . . . . . . Repair Stations 6 | . . . . . . . 1 . 4 . . . . . 1 . . Recycling Units 3 | . . . . . . . . 3 . . . . . . . . . Scanalyzers 2 | . . . . . . . . . . . . . . . 2 . . Garrison Access 4 | . . . . . . . . . 2 . . . . 1 1 . . Terminal Hacks 62 | . 1 1 3 1 1 . 1 9 4 1 7 9 . 18 4 1 1 Record 8 | . . . . . . . . 1 1 . 1 5 . . . . . Robot Analysis 3 | . . . . . . . . . . . 1 . . 2 . . . Prototype ID Bank 2 | . 1 . . . . . . . . . . . . 1 . . . Open Door 5 | . . 1 . 1 . . . 1 . . . . . . . 1 1 Level Access Points 3 | . . . . . . . . 1 . . . 1 . 1 . . . Branch Access Points 4 | . . . 1 . . . . 1 . . 1 1 . . . . . Emergency Access Points 2 | . . . . . . . . . 1 . . . . 1 . . . Terminal Index 3 | . . . . . . . . 1 . . . . . 1 1 . . Alert Level 1 | . . . . . . . . . . . . . . . 1 . . Unreport Threat 2 | . . . . . . . 1 . . . 1 . . . . . . Locate Traps 12 | . . . 1 . . . . 1 2 . 2 . . 4 2 . . Disarm Traps 1 | . . . . . . . . . . . . . . 1 . . . Dispatch Records 1 | . . . . . . . . . . . . . . 1 . . . Patrol Status 1 | . . . . . . . . . . . . . . 1 . . . Reinforcement Status 1 | . . . . . . . . . . . . . . 1 . . . Recall Investigation 2 | . . . . . . . . . . 1 . 1 . . . . . Recall Reinforcements 1 | . . . . . . . . . . . . . . 1 . . . Zone Layout 9 | . . . 1 . . . . 3 . . 1 1 . 3 . . . EX-Prototype ID Bank 1 | . . . . . 1 . . . . . . . . . . . . Fabricator Hacks 1 | . . . . . . . . . 1 . . . . . . . . Network Status 1 | . . . . . . . . . 1 . . . . . . . . Repair Station Hacks 2 | . . . . . . . . . 2 . . . . . . . . Scan Component 1 | . . . . . . . . . 1 . . . . . . . . Repair 1 | . . . . . . . . . 1 . . . . . . . . Recycling Unit Hacks 2 | . . . . . . . . 2 . . . . . . . . . Report Inventory 2 | . . . . . . . . 2 . . . . . . . . . Scanalyzer 2 | . . . . . . . . . . . . . . . 2 . . Insert Component 1 | . . . . . . . . . . . . . . . 1 . . Analyze 1 | . . . . . . . . . . . . . . . 1 . . Garrison Access Hacks 1 | . . . . . . . . . 1 . . . . . . . . Seal Access 1 | . . . . . . . . . 1 . . . . . . . . Unauthorized Hacks 146 | . 4 . 4 . . . 2 45 6 11 24 10 . 26 14 . . Terminals 59 | . . . 2 . . . 1 18 2 4 12 5 . 10 5 . . Track 14 | . . . 1 . . . 1 3 . 2 2 1 . 3 1 . . Assimilate 7 | . . . . . . . . 3 . 1 1 . . 1 1 . . Botnet 32 | . . . . . . . . 11 2 1 7 4 . 5 2 . . Detonate 1 | . . . . . . . . . . . 1 . . . . . . Operators 5 | . . . 1 . . . . 1 . . 1 . . 1 1 . . Fabricators 1 | . . . . . . . . . . 1 . . . . . . . Download 1 | . . . . . . . . . . 1 . . . . . . . Repair Stations . | . . . . . . . . . . . . . . . . . . Recycling Units 1 | . . . . . . . . 1 . . . . . . . . . Tunnel 1 | . . . . . . . . 1 . . . . . . . . . Scanalyzers . | . . . . . . . . . . . . . . . . . . Garrison Access 2 | . . . . . . . . . . . . . . 1 1 . . Jam 2 | . . . . . . . . . . . . . . 1 1 . . Data Cores Recovered 2 | . . . . . . . . 1 . . . . . . 1 . . Used . | . . . . . . . . . . . . . . . . . . Hacking Detections 50 | . 3 . 2 . . . 2 13 6 3 8 4 . 6 3 . . Full Trace Events 6 | . 1 . . . . . . 4 . . . 1 . . . . . Feedback Events . | . . . . . . . . . . . . . . . . . . Feedback Blocked . | . . . . . . . . . . . . . . . . . . Robot Schematics Acquired . | . . . . . . . . . . . . . . . . . . Robots Built . | . . . . . . . . . . . . . . . . . . Matter . | . . . . . . . . . . . . . . . . . . Time . | . . . . . . . . . . . . . . . . . . Total Robot Build Rating . | . . . . . . . . . . . . . . . . . . Part Schematics Acquired 1 | . . . . . . . . . . . . . . . 1 . . Parts Built . | . . . . . . . . . . . . . . . . . . Matter . | . . . . . . . . . . . . . . . . . . Time . | . . . . . . . . . . . . . . . . . . Total Part Build Rating . | . . . . . . . . . . . . . . . . . . Parts Repaired 1 | . . . . . . . . . 1 . . . . . . . . Time 19 | . . . . . . . . . 19 . . . . . . . . Parts Recycled . | . . . . . . . . . . . . . . . . . . Recycled Matter . | . . . . . . . . . . . . . . . . . . Retrieved Matter . | . . . . . . . . . . . . . . . . . . Retrieved Components . | . . . . . . . . . . . . . . . . . . Parts Scanalyzed 1 | . . . . . . . . . . . . . . . 1 . . Part Schematics Acquired 1 | . . . . . . . . . . . . . . . 1 . . Parts Damaged . | . . . . . . . . . . . . . . . . . . Bothacking | -11 -10 -10 -9 -9 -9 -8 -8 -8 -7 -6 -6 -6 -6 -6 -5 -5 -5 ------------ Run | Scr Mat Min Mat Min Exi Min Mat Sto Fac Fac Ext Cet Arc Hub Fac Upp Upp Used RIF Installer . | . . . . . . . . . . . . . . . . . . Robots Hacked . | . . . . . . . . . . . . . . . . . . Non-combat . | . . . . . . . . . . . . . . . . . . Combat . | . . . . . . . . . . . . . . . . . . Robot Hacks Applied . | . . . . . . . . . . . . . . . . . . Relay Couplers Released 3 | . . . . . . . . . . . . . . . 3 . . Programmers 3 | . . . . . . . . . . . . . . . 3 . . Robots Rewired 12 | . . . . . . . . . . . 11 . . . . 1 . Allies Hacked 1 | . . . . . . . . . . . . . . . 1 . . Hacks Repelled . | . . . . . . . . . . . . . . . . . . Allies | -11 -10 -10 -9 -9 -9 -8 -8 -8 -7 -6 -6 -6 -6 -6 -5 -5 -5 -------- Run | Scr Mat Min Mat Min Exi Min Mat Sto Fac Fac Ext Cet Arc Hub Fac Upp Upp Total Allies 34 | . . . . . . . . 10 . . 21 . . . 1 1 1 Largest Group 10 | . . . . . . . . 10 . . 7 5 . . 1 1 1 Highest-Rated Group 336 | . . . . . . . . 173 . . 336 170 . . 10 49 180 Highest-Rated Ally 180 | . . . . . . . . 29 . . 156 37 . . 10 49 180 Total Orders 7 | . . . . . . . . 2 . 1 4 . . . . . . GOTO 1 | . . . . . . . . . . . 1 . . . . . . ROAM 1 | . . . . . . . . 1 . . . . . . . . . GUARD 3 | . . . . . . . . . . . 3 . . . . . . EXPLORE 2 | . . . . . . . . 1 . 1 . . . . . . . Ally Attacks 281 | . . . . . . . . 119 . . 96 66 . . . . . Total Damage 4137 | . . . . . . . . 1532 . . 1910 695 . . . . . Kills 46 | . . . . . . . . 22 . . 15 9 . . . . . Allies Corrupted . | . . . . . . . . . . . . . . . . . . Allies Melted . | . . . . . . . . . . . . . . . . . . Intel | -11 -10 -10 -9 -9 -9 -8 -8 -8 -7 -6 -6 -6 -6 -6 -5 -5 -5 ------- Run | Scr Mat Min Mat Min Exi Min Mat Sto Fac Fac Ext Cet Arc Hub Fac Upp Upp Robot Analysis Total 3 | . . . . . . . . . . . 1 . . 2 . . . Derelict Logs Recovered 3 | . . . . 1 . . . . . . . . . . . 2 . Drone Launches 12 | . . . . . . . . 10 . 2 . . . . . . . Drone Recoveries . | . . . . . . . . . . . . . . . . . . Exploration | -11 -10 -10 -9 -9 -9 -8 -8 -8 -7 -6 -6 -6 -6 -6 -5 -5 -5 ------------- Run | Scr Mat Min Mat Min Exi Min Mat Sto Fac Fac Ext Cet Arc Hub Fac Upp Upp Turns Passed 15321 | 97 217 91 306 622 321 609 1286 1866 1308 1034 1456 690 394 524 1575 2368 557 Spaces Moved 7234 | 48 163 73 206 508 263 369 501 581 700 468 623 258 195 218 518 1265 277 Core 75 | 11 . . . . . . . . . . . . . . . . 64 Treads 5437 | . . . . . . . 398 581 700 468 623 258 195 218 518 1265 213 Legs 1722 | 37 163 73 206 508 263 369 103 . . . . . . . . . . Wheels . | . . . . . . . . . . . . . . . . . . Hover . | . . . . . . . . . . . . . . . . . . Flight . | . . . . . . . . . . . . . . . . . . Fastest Speed 50 | 50 120 120 120 120 120 120 190 165 158 158 163 160 160 160 160 160 50 Average Speed 165 | 116 120 120 120 120 120 129 223 199 160 177 180 162 160 160 165 177 158 Slowest Speed 270 | 150 120 120 120 120 120 140 270 205 165 178 185 183 160 160 180 180 220 Overloaded Moves . | . . . . . . . . . . . . . . . . . . Propulsion Burnouts . | . . . . . . . . . . . . . . . . . . Robots Hopped . | . . . . . . . . . . . . . . . . . . Cave-ins Triggered . | . . . . . . . . . . . . . . . . . . Exploration Rate (%) 46 | 5 28 30 19 82 62 66 30 80 20 13 68 81 99 23 9 94 29 Regions Visited 17 Branch Regions 11 Pre-discovered Areas 2 | . . . . . . . . 1 . . . . . . . 1 . Known Exits Taken 14 | . . . 1 1 1 1 1 1 1 1 1 1 1 1 1 1 . Unknown Exits Taken 3 | 1 1 1 . . . . . . . . . . . . . . . Scrap Searched 8 | . . . . 2 . 2 . . . . . . . . . 4 . Spaces Dug 50 | . . . . . . . 1 . . 6 . . . 7 30 6 . Terrain Destroyed 442 | . . . . . . . 3 . 8 6 7 . 11 329 63 11 4 Melee 37 | . . . . . . . . . . 6 . . . . 25 6 . Projectile 68 | . . . . . . . 3 . . . 1 . 1 16 38 5 4 AOE 337 | . . . . . . . . . 8 . 6 . 10 313 . . . Actions | -11 -10 -10 -9 -9 -9 -8 -8 -8 -7 -6 -6 -6 -6 -6 -5 -5 -5 --------- Run | Scr Mat Min Mat Min Exi Min Mat Sto Fac Fac Ext Cet Arc Hub Fac Upp Upp Total 9665 | 69 176 77 244 519 269 464 588 1198 803 632 873 442 227 342 1073 1330 339 Wait 1481 | . . . 25 8 . 64 7 492 22 121 95 121 . 88 425 6 7 Move 7217 | 47 162 72 205 507 262 368 500 580 699 467 622 257 194 217 517 1264 277 Hop . | . . . . . . . . . . . . . . . . . . Pick Up 87 | 3 3 2 1 . 2 . 14 14 9 2 9 3 1 3 9 9 3 Fast Attach 57 | 8 1 . . 2 . 4 10 5 6 2 4 1 3 1 7 2 1 Attach 41 | . . 1 2 . . 1 3 1 2 2 4 2 1 1 10 3 8 Detach 22 | 1 . 1 . . . 1 3 2 3 1 1 1 2 . 4 1 1 Swap 67 | . 1 . 1 1 2 2 3 6 6 8 14 8 . 1 6 6 2 Drop 64 | . 4 1 . 1 3 5 . 12 6 2 10 5 . 4 3 2 6 Fire 462 | 10 5 . 10 . . 19 37 76 50 11 34 39 26 27 62 28 28 Melee 60 | . . . . . . . . . . 15 5 5 . . 25 6 4 Ram . | . . . . . . . . . . . . . . . . . . Kick 4 | . . . . . . . 4 . . . . . . . . . . Crush 16 | . . . . . . . 7 1 . . 1 . . . 5 . 2 Escape Stasis 8 | . . . . . . . . 4 . . 4 . . . . . . Rewire 73 | . . . . . . . . . . . 70 . . . . 3 . Trap . | . . . . . . . . . . . . . . . . . . Miscellaneous 6 | . . . . . . . . 5 . 1 . . . . . . . Route ------- -11/Scrapyard -10/Materials -10/Mines -9/Materials -9/Mines (discovered 2 exits: *Mat / *Exi) -9/Exiles (discovered 2 exits: *Min x2) -8/Mines -8/Materials (discovered 2 exits: Fac / *Sto) -8/Storage (discovered 2 exits: *Fac / Rec) -7/Factory -6/Factory -6/Extension (discovered 3 exits: *Fac x2 / *Cet) -6/Cetus (discovered 3 exits: Fac x2 / *Arc) -6/Archives (discovered 3 exits: *Fac / *Hub x2) -6/Hub_04(d) (discovered 4 exits: *Fac x4) -5/Factory -5/Upper Caves -5/Upper Caves History --------- Turn | Location | Event 11 | -11/Scrapyard | Discovered new exit (range 16) 98 | -11/Scrapyard | Entered Materials 262 | -10/Materials | Discovered new exit (range 6) 301 | -10/Materials | Build established: Mutant 315 | -10/Materials | Entered Mines 326 | -10/Mines | Met a Derelict shopkeep closing up shop 395 | -10/Mines | Discovered new exit (range 8) 406 | -10/Mines | Entered Materials 406 | -9/Materials | Evolved 2 slots: Utility x2 575 | -9/Materials | Identified exit to Mines 637 | -9/Materials | Build established: Hacker-Mutant 712 | -9/Materials | Entered Mines 792 | -9/Mines | Learned location of 1 exit from Materials 874 | -9/Mines | Met a Derelict who couldn't figure out how to use a Trap Extractor 912 | -9/Mines | Discovered new exit (range 14) 931 | -9/Mines | Assisted by bots powering up and referring to "LRC-V3" 1005 | -9/Mines | Identified exit to Materials 1323 | -9/Mines | Discovered new exit (range 6) 1325 | -9/Mines | Deemed a non-threat by the Exiles lab entrance 1331 | -9/Mines | Identified exit to Exiles 1334 | -9/Mines | Entered Exiles 1358 | -9/Exiles | Discovered new exit (range 14) 1373 | -9/Exiles | Identified exit to Mines 1396 | -9/Exiles | Met 8R-AWN 1415 | -9/Exiles | Met EX-HEX 1456 | -9/Exiles | Met EX-BIN 1470 | -9/Exiles | Aligned with FarCom system 1471 | -9/Exiles | Given EX-Vault access code 1500 | -9/Exiles | Opened EX-Vault 1509 | -9/Exiles | Found Skeleton Box 1539 | -9/Exiles | Warned to stay clear of 0b10 Research branches 1554 | -9/Exiles | Exiles lab attacked by MAIN.C 1641 | -9/Exiles | Discovered exit to Mines (range 14) 1655 | -9/Exiles | Left Exiles lab with Skeleton Box 1655 | -9/Exiles | Entered Mines 2232 | -8/Mines | Build established: Hacker-Skirmisher 2242 | -8/Mines | Discovered exit to Materials (range 7) 2264 | -8/Mines | Entered Materials 2264 | -8/Materials | Evolved 2 slots: Utility x2 2265 | -8/Materials | Identified exit to Factory 2515 | -8/Materials | Lost 8 parts (1p2n3u2w) 2746 | -8/Materials | Build established: Hauler-Mutant 3504 | -8/Materials | Discovered new exit (range 8) 3520 | -8/Materials | Identified exit to Storage 3550 | -8/Materials | Entered Storage 3615 | -8/Storage | Remotely autohacked Sealed Heavy Doors 3839 | -8/Storage | Remotely autohacked Sealed Heavy Doors 3877 | -8/Storage | Assisted by bots powering up and referring to "LRC-V3" 3913 | -8/Storage | Garrison activated, responded to threat 3916 | -8/Storage | Identified exit to Recycling 5132 | -8/Storage | Remotely autohacked Sealed Heavy Doors 5346 | -8/Storage | Build established: Hacker-Mutant 5416 | -8/Storage | Entered Factory 5416 | -7/Factory | Evolved 2 slots: Propulsion x1, Utility x1 5994 | -7/Factory | Repaired Arm. Treads 6575 | -7/Factory | Discovered new exit (range 11) 6607 | -7/Factory | Identified exit to Factory 6724 | -7/Factory | Entered another Factory area 6724 | -6/Factory | Evolved 2 slots: Power x1, Utility x1 7748 | -6/Factory | Remotely autohacked Sealed Blast Doors 7748 | -6/Factory | Discovered new exit (range 6) 7755 | -6/Factory | Identified exit to Extension 7758 | -6/Factory | Entered Extension 7786 | -6/Extension | Disrupted transfer network 8035 | -6/Extension | Remotely autohacked Sealed Heavy Doors 8035 | -6/Extension | Rescued a captive Derelict 8038 | -6/Extension | Rescued a captive Derelict 8150 | -6/Extension | Remotely autohacked Sealed Heavy Doors 8153 | -6/Extension | Rescued a captive Derelict 8154 | -6/Extension | Identified exit to Cetus 8489 | -6/Extension | Remotely autohacked Sealed Heavy Doors 8490 | -6/Extension | Rescued A7 8549 | -6/Extension | Spotted B-75 Beast 8587 | -6/Extension | Spotted B-75 Beast 8598 | -6/Extension | Destroyed B-75 Beast 8609 | -6/Extension | Extracted ID and sensor layout for unrecognized location from A7's data core 8644 | -6/Extension | Lost 5 parts (1n3u1w) 8656 | -6/Extension | Remotely autohacked Sealed Heavy Doors 8656 | -6/Extension | Discovered new exit (range 9) 8686 | -6/Extension | Identified exit to Factory 8899 | -6/Extension | Discovered exit to Factory (range 16) 8994 | -6/Extension | Remotely autohacked Sealed Heavy Doors 8994 | -6/Extension | Rescued a captive Derelict 8995 | -6/Extension | Rescued a captive Derelict 9033 | -6/Extension | Remotely autohacked Sealed Heavy Doors 9034 | -6/Extension | Rescued a captive Derelict 9035 | -6/Extension | Rescued a captive Derelict 9070 | -6/Extension | Remotely autohacked Sealed Heavy Doors 9071 | -6/Extension | Rescued a captive Derelict 9071 | -6/Extension | Rescued a captive Derelict 9077 | -6/Extension | Central database locked down 9214 | -6/Extension | Entered Cetus 9214 | -6/Cetus | Accompanied by 5 allies 9238 | -6/Cetus | Spotted Cetus Guard 9238 | -6/Cetus | Spotted Cetus Guard 9238 | -6/Cetus | Allies destroyed Cetus Guard 9240 | -6/Cetus | Spotted Cetus Guard 9242 | -6/Cetus | Allies destroyed Cetus Guard 9242 | -6/Cetus | Spotted Cetus Guard 9245 | -6/Cetus | Allies destroyed Cetus Guard 9261 | -6/Cetus | Allies destroyed Cetus Guard 9365 | -6/Cetus | Remotely autohacked Sealed Heavy Doors 9400 | -6/Cetus | Found a strange terminal 9419 | -6/Cetus | Identified exit to Archives 9904 | -6/Cetus | Entered Archives 10022 | -6/Archives | Unable to access archive contents 10051 | -6/Archives | Unable to access archive contents 10067 | -6/Archives | Discovered new exit (range 15) 10077 | -6/Archives | Unable to access archive contents 10111 | -6/Archives | Build established: Scavenger-Mutant 10152 | -6/Archives | Discovered exit to Factory (range 4) 10211 | -6/Archives | Identified exit to Hub_04(d) 10260 | -6/Archives | Discovered exit to Hub_04(d) (range 15) 10298 | -6/Archives | Entered Hub_04(d) 10306 | -6/Hub_04(d) | Discovered exit to Factory (range 13) 10746 | -6/Hub_04(d) | Network Hub disabled 10746 | -6/Hub_04(d) | Network Hub disabled 10761 | -6/Hub_04(d) | Spotted Lightning 10763 | -6/Hub_04(d) | Spotted Lightning 10777 | -6/Hub_04(d) | Spotted Lightning 10778 | -6/Hub_04(d) | Spotted Lightning 10778 | -6/Hub_04(d) | Spotted Lightning 10778 | -6/Hub_04(d) | Spotted Lightning 10785 | -6/Hub_04(d) | System corruption reached 10% 10796 | -6/Hub_04(d) | Spotted Lightning 10822 | -6/Hub_04(d) | Entered Factory 10822 | -5/Factory | Evolved 2 slots: Utility x2 10829 | -5/Factory | Lost 5 parts (2p1u2w) 11095 | -5/Factory | Build established: Hacker-Mutant 12363 | -5/Factory | Discovered new exit (range 6) 12380 | -5/Factory | Build established: Scavenger-Mutant 12390 | -5/Factory | Identified exit to Upper Caves 12397 | -5/Factory | Entered Upper Caves 12438 | -5/Upper Caves | Lost 3 parts (1n2w) 12453 | -5/Upper Caves | Encountered a Warlord checkpoint 12698 | -5/Upper Caves | Build established: Hacker-Mutant 12818 | -5/Upper Caves | Spotted B-75 Beast 12861 | -5/Upper Caves | Learned 4 Factory zone layouts 14287 | -5/Upper Caves | Learned location of Armory (-3) 14439 | -5/Upper Caves | Attracted the attention of an 0b10 checkpoint 14492 | -5/Upper Caves | Discovered new exit (range 6) 14498 | -5/Upper Caves | Identified exit to Upper Caves 14765 | -5/Upper Caves | Entered another Upper Caves area 14765 | -5/Upper Caves | Accompanied by 1 ally 15116 | -5/Upper Caves | Lost 3 parts (2n1u) 15134 | -5/Upper Caves | Destroyed 7 combat bots 15196 | -5/Upper Caves | Attracted the attention of an 0b10 outpost 15275 | -5/Upper Caves | Core integrity fell below 50% 15290 | -5/Upper Caves | Attracted the attention of an 0b10 checkpoint 15315 | -5/Upper Caves | Core integrity fell below 20% 15322 | -5/Upper Caves | Destroyed by G-50 Soldier with Heavy Laser Last Messages --------------- 15275_ Hyp. Gauss Rifle destroyed. 15277_ Critical hit. 15277_ Disruptor Cannon destroyed. 15278_ Destroyed Imp. Remote Datajack. 15278_ Destroyed Antigrav System. 15278_ Structural Scanner destroyed. 15279_ Mic. Fission Core destroyed. 15280_ P-70 Sage suffers critical hit. 15280_ P-70 Sage destroyed. 15282_ Dropped Lrg. Storage Unit. 15282_ Imp. Transmission Jammer destroyed. 15282_ Dropped Hcp. Storage Unit. 15283_ Dropped Beamcaster. 15284_ Mic. Fission Core fries itself beyond repair. 15285_ Adv. Cooling System destroyed. 15290_ Y-64 Sentinel: "INTERCEPTING UNREGISTERED DERELICT." 15308_ S-27 Virus destroyed. 15308_ Matter Neutralizer destroyed. A strange signal echoes through the caves. 15312_ Slug penetrates S-27 Virus. Map ----- +----------------------------------------------------+ | | | | | | | | | | | ?????????????????????????????????????????????????? | | ?????????????????????????????????????????????????? | | ?????????????????????????????????????????????????? | | ?????????????????????????????????????????????????? | | ?????????????????????????????????????????????????? | | ?????????????????????????????????????????????????? | | ?????????????????????????????????????????????????? | | ?????????????????????????????????????????????????? | | ?????????????????????????????????????????????????? | | ?????????????????????????????????????????????????? | | ?????????????????????????????####????????????????? | | ?????????????????????????????#""##???????????????? | | ??????????????????????????????"""##??????????????? | | ?????????????????????????????##"""#??????????????? | | ????????????????????????######"" #??????????????? | | ???????????????????###### #??????????????? | | ???????????????????# ##????????####?? | | ???????????????????# ## ##???????# #?? | | ???????????????????## ##??????# #?? | | ???????????# ### ######## #?? | | ?????????? r @ ## #?? | | ??????????????## r s #?? | | ???????????????# ##### ### ##?? | | ??????????????# ??????####?# % ## ##??? | | ?????????????? ????????????## g g #######???? | | ???????????????????????##### ##?????????? | | ??????????????????????## ##??????????? | | ?????????????????????## #???????????? | | ?????????????????????# ##???????????? | | ?????????????????????# ##???????????? | | ?????????????????????# #???????????? | | ???????????????????# ### ## #?????????? | | ?????????????????## #?### ### #???????? | | ?????????????????# ???# #?# ##???????? | | ????????????????## #### ???# #?# ##?????????# | | ????????????# # ?# ???# #?? #??????????# | | ??????????? # #### ### #??????????# | | ?????????????# # #??????????? | | ?????????????# ######## ##???? #????? | | ??????????????# # # """ # ### ??????? | | ??????????????## ??# #!!!%[ # ????????? | | ???????????????## ????# /=!%%! # ??????????? | | ????????????????##??????# #!! #+## #???????????? | | ????????????????????????# #!!%#% #???????????? | | ????????????????????????# #""*# #???????##### | +----------------------------------------------------+ Best States ------------- Heat Dissipation 71 Coolant Potential 65 Energy Generation 32 Energy Capacity 500 Matter Stores 300 Matter Capacity 300 Sight Range 16 Robot Scan Range 13 Terrain Scan Range 16 Terrain Scan Density 60 Jamming Range 12 Armor Coverage 450 Resistance: KI 45 Resistance: TH 30 Resistance: EX 20 Resistance: EM 20 Resistance: I 20 Resistance: S 20 Resistance: P 20 Utility Shielding 66 Thermal Conversion 30 Evasion (%) 50 Recoil Reduction 3 Particle Charging 20 Offensive Hacking 34 Defensive Hacking 12 Item Schematics ----------------- Imp. Medium Treads | -5/Factory | Scanalyzed Robot Schematics ------------------ None Fabricated ------------ Nothing Alien Tech Used ----------------- None Achievements -------------- Knowing Is Half The Battle Maximum Efficiency Challenges ------------ None Game ------ Seed SurveybotBattleBoomstick Manual? 0 Play Time 02:38:44 Cumulative 129.5 hours Start 2020.02.24 @ 21:58:10 End 2020.02.29 @ 21:03:23 Sessions 5 Manual Loads 0 Difficulty Adventurer Special Mode None Game No. 163 Rogue 152 Adventurer 11 Explorer 0 Win Type - Total 0 Types 0/0/0/0/0/0/0 Lore% 53 Gallery% 64 Achievement% 41 Wizard Run 0 Options --------- ASCII 0 Keyboard 1 Movement Arrows Keybinds 0 Fullscreen 0 Font 32/SmallcapsGlow Map View 76x50 Tactical HUD 1 Map Filters NONE Filters NONE Steam 1 RUN: cccbc986-aa22-432f-803e-e783f49ad167